bitfinex/quotes_ETHUSD_20241101
["timestamp","ask_amount","ask_price","bid_price","bid_amount"]
[1730492710422,3.96833,2520.0,2519.8,0.12417695]
[1730492710723,3.96833,2520.0,2519.9,0.12417695]
[1730492710893,3.96833,2520.0,2519.7,0.19867937]
[1730492711092,3.96833,2520.0,2519.8,0.12417468]
[1730492711293,3.96833,2520.0,2519.7,0.19867981]
[1730492711625,3.96833,2520.0,2519.8,0.12417488]
[1730492711789,3.96833,2520.0,2519.9,0.12417488]
[1730492714683,3.96833,2520.0,2519.6,0.1986723]
[1730492714886,3.99899043,2520.0,2519.7,0.32284249]
[1730492715086,3.99899043,2520.0,2519.8,0.12417019]
[1730492715289,3.99899043,2520.0,2519.9,0.12417019]
[1730492715711,4.73775,2520.1,2519.9,0.12417019]
[1730492716015,4.76841043,2520.1,2519.7,0.19867349]
[1730492716216,4.76841043,2520.1,2519.8,0.12417083]
[1730492716416,4.76841043,2520.1,2519.9,0.12417083]
[1730492716623,4.76841043,2520.1,2519.7,3.96866]
[1730492716925,4.76841043,2520.1,2519.8,0.1241708]
[1730492717095,3.96795,2520.2,2519.9,0.1241708]
[1730492717300,3.99861043,2520.2,2520.0,0.1241708]
[1730492717490,7.96663043,2520.2,2520.1,0.1241708]
[1730492717685,3.96795,2520.2,2519.8,2.23003737]
[1730492717921,7.93597,2520.2,2519.8,3.3691773]
[1730492718087,7.93597,2520.2,2519.9,0.1241661]
[1730492718419,3.96795,2520.2,2520.0,0.12416601]
[1730492718618,3.99861043,2520.2,2519.8,2.23003737]
[1730492718820,3.99861043,2520.2,2519.9,0.1241654]
[1730492719025,3.99861043,2520.2,2520.0,0.1241654]
[1730492719187,3.99861043,2520.2,2519.8,2.23003737]
[1730492719386,4.82900043,2520.3,2519.9,4.09256581]
[1730492719612,4.82900043,2520.3,2520.0,0.12416581]
[1730492719814,3.968,2520.2,2519.8,6.84326631]
[1730492720010,3.968,2520.2,2519.9,0.12416388]
[1730492720323,3.968,2520.2,2520.0,0.12416388]
[1730492720497,3.99866043,2520.2,2519.8,6.84326631]
[1730492720704,3.99866043,2520.2,2519.9,0.3228276]
[1730492721002,3.968,2520.2,2520.0,0.12416446]
[1730492721303,3.968,2520.2,2519.8,6.84321631]
[1730492721489,3.968,2520.2,2519.9,1.0150817]
[1730492721821,3.968,2520.2,2520.0,0.12416291]
[1730492722012,3.968,2520.2,2520.1,0.12416291]
[1730492722185,4.82895043,2520.3,2520.1,0.12416291]
[1730492722390,3.96779,2520.3,2519.9,4.16705903]
[1730492722590,3.99845043,2520.3,2520.0,0.12416076]
[1730492722814,3.99845043,2520.3,2520.1,0.12416076]
[1730492723094,3.99845043,2520.3,2519.9,3.9684]
[1730492723095,3.96779,2520.3,2519.9,3.9684]
[1730492723422,3.99845043,2520.3,2520.0,0.12415981]
[1730492723587,3.99845043,2520.3,2520.1,0.12415981]
[1730492723783,3.96779,2520.3,2519.9,3.9684]
[1730492723983,3.96779,2520.3,2520.0,0.12416095]
[1730492724206,3.99845043,2520.3,2520.1,0.12416095]
[1730492724419,3.99845043,2520.3,2519.9,3.9684]
[1730492724608,3.99845043,2520.3,2520.0,0.12416168]
[1730492724796,3.99845043,2520.3,2520.1,0.12416168]
[1730492725001,3.99845043,2520.3,2519.9,3.9684]
[1730492725205,3.96779,2520.3,2520.0,0.12416173]
[1730492725401,3.99845043,2520.3,2520.1,0.12416173]
[1730492725618,0.7733,2520.3,2520.0,1.45453737]
[1730492725826,3.0,2520.6,2520.1,5.40391525]
[1730492725827,0.80396043,2520.5,2520.1,5.40391525]
[1730492726127,4.77142043,2520.5,2520.2,0.12416151]
[1730492726335,4.77142043,2520.5,2520.3,0.12416151]
[1730492726534,4.77142043,2520.5,2520.2,0.19863828]
[1730492726693,4.77142043,2520.5,2520.3,0.12415598]
[1730492726895,4.77142043,2520.5,2520.1,5.27975374]
[1730492727201,4.77142043,2520.5,2520.2,1.19440648]
[1730492727407,4.77142043,2520.5,2520.3,0.12415337]
[1730492727610,3.96769,2520.4,2519.9,0.778]
[1730492727928,3.96779,2520.3,2520.0,0.32280857]
[1730492728129,3.96779,2520.3,2520.1,0.12415714]
[1730492728436,3.96779,2520.3,2520.2,0.12415714]
[1730492728636,3.99832043,2520.4,2520.2,0.12415714]
[1730492728937,3.99832043,2520.4,2520.0,4.16680626]
[1730492728938,3.99832043,2520.4,2520.0,3.96816]
[1730492729141,3.99832043,2520.4,2520.3,0.12415635]
[1730492729296,3.96786,2520.3,2520.1,0.19865017]
[1730492729502,4.82022043,2520.2,2519.7,4.99490271]
[1730492729818,4.78956,2520.2,2519.8,0.19866263]
[1730492730029,4.82022043,2520.2,2519.9,0.12416414]
[1730492730337,4.82022043,2520.2,2519.8,3.96849]
[1730492730338,0.8215,2520.2,2520.0,0.12416414]
[1730492730509,0.8215,2520.2,2520.1,0.12416144]
[1730492731410,0.8215,2520.2,2519.9,4.1670602]
[1730492731613,0.8215,2520.2,2520.0,0.1241627]
[1730492731921,0.8215,2520.2,2519.9,3.9684]
[1730492732109,0.8215,2520.2,2520.0,0.12416291]
[1730492732304,0.8215,2520.2,2520.1,0.12416291]
[1730492732804,0.8215,2520.2,2519.9,4.98536174]
[1730492733010,0.8215,2520.2,2520.0,0.12416013]
[1730492733204,0.8215,2520.2,2520.1,0.12416013]
[1730492733507,0.8215,2520.2,2519.9,4.16705816]
[1730492733710,0.8215,2520.2,2520.0,0.12416139]
[1730492733935,0.8215,2520.2,2519.9,5.00522755]
[1730492734244,0.8215,2520.2,2520.0,0.12416027]
[1730492734404,4.7895,2520.2,2520.1,0.1241597]
[1730492734610,4.7895,2520.2,2519.8,0.19865542]
[1730492734805,3.96814,2520.1,2519.9,0.12416239]
[1730492735010,3.96826,2520.0,2519.6,5.42335737]
[1730492735341,3.96819,2520.1,2519.7,4.29154784]
[1730492735543,4.78491,2519.9,2519.8,0.12416455]
[1730492735747,4.81557043,2519.9,2519.8,0.12416455]
[1730492736049,5.69396147,2519.9,2519.8,0.12416455]
[1730492736419,3.96866,2519.8,2519.4,3.96904]
[1730492736620,4.78547,2519.6,2519.2,0.2483538]
[1730492736938,0.8165,2519.6,2519.3,0.32286099]
[1730492737118,0.8165,2519.6,2519.4,0.32286099]
[1730492737323,0.8165,2519.6,2519.5,0.1241773]
[1730492737931,4.78538,2519.6,2519.5,0.1241773]
[1730492738320,4.81604043,2519.6,2519.5,0.1241773]
[1730492740151,4.81604043,2519.6,2519.5,0.12418916]
[1730492740522,4.81604043,2519.6,2519.5,0.12418909]
[1730492741531,0.84716043,2519.6,2519.5,0.12418909]
[1730492742321,0.8165,2519.6,2519.5,0.12418909]
[1730492742617,4.78538,2519.6,2519.5,0.12418909]
[1730492742816,0.8165,2519.6,2519.5,0.12418909]
[1730492746649,0.8165,2519.6,2519.4,3.96919]
[1730492747440,0.8165,2519.6,2519.1,4.74756]
[1730492747647,0.8165,2519.6,2519.3,3.96925]
[1730492747848,0.8165,2519.6,2519.4,3.96919]
[1730492748670,0.8165,2519.6,2519.3,3.96934]
[1730492748827,0.03066043,2519.5,2519.3,3.96934]
[1730492749023,0.03066043,2519.5,2519.2,3.96936]
[1730492749230,0.03066043,2519.5,2519.3,3.96934]
[1730492750066,0.03066043,2519.5,2519.2,3.96948]
[1730492750371,0.03066043,2519.5,2519.3,0.3228969]
[1730492750667,0.03066043,2519.5,2519.4,0.12419111]
[1730492751950,0.8165,2519.6,2519.4,0.12419111]
[1730492752161,0.84716043,2519.6,2519.3,3.96935]
[1730492752353,0.84716043,2519.6,2519.4,0.12419085]
[1730492752666,0.84716043,2519.6,2519.3,3.96935]
[1730492752971,0.84716043,2519.6,2519.4,0.12419065]
[1730492753173,0.84716043,2519.6,2519.3,3.96935]
[1730492753338,0.84716043,2519.6,2519.4,0.12419058]
[1730492753540,0.84716043,2519.6,2519.2,4.16817546]
[1730492753735,0.84716043,2519.6,2519.3,0.12419106]
[1730492754072,0.84716043,2519.6,2519.4,0.12419106]
[1730492754364,0.84716043,2519.6,2519.2,4.16817546]
[1730492754664,0.84716043,2519.6,2519.3,0.12419139]
[1730492754870,0.84716043,2519.6,2519.4,0.12419139]
[1730492755169,0.84716043,2519.6,2519.2,4.16817546]
[1730492755333,0.84716043,2519.6,2519.3,0.12419125]
[1730492755538,0.84716043,2519.6,2519.2,3.96947]
[1730492755773,0.84716043,2519.6,2519.3,0.12419139]
[1730492755949,0.84716043,2519.6,2519.2,5.1139375]
[1730492755950,0.84716043,2519.6,2519.2,4.91523128]
[1730492756147,0.84716043,2519.6,2519.4,0.12419105]
[1730492756470,4.81604043,2519.6,2519.2,3.96947]
[1730492756776,4.81604043,2519.6,2519.3,0.12419129]
[1730492757073,4.81604043,2519.6,2519.4,0.12419129]
[1730492757277,4.81604043,2519.6,2519.2,3.96947]
[1730492757499,7.78629,2519.4,2519.3,0.12419057]
[1730492757780,4.78702,2519.0,2518.7,0.19875447]
[1730492757938,4.78702,2519.0,2518.8,0.12421853]
[1730492757939,4.00073043,2518.9,2518.8,0.12421853]
[1730492758145,0.84776043,2518.9,2518.3,0.19875447]
[1730492758346,0.03066043,2519.0,2518.7,3.97029]
[1730492758551,0.03066043,2519.0,2518.7,1.01733274]
[1730492758774,0.03066043,2519.0,2518.7,0.12422506]
[1730492758971,4.00055043,2519.0,2518.6,4.74843]
[1730492759268,4.00055043,2519.0,2518.6,3.97043]
[1730492759473,4.00055043,2519.0,2518.5,4.09482821]
[1730492759769,4.00055043,2519.0,2518.5,3.9706]
[1730492759970,3.96999,2518.9,2518.5,3.9706]
[1730492760170,0.03066043,2518.8,2518.5,4.09482783]
[1730492760468,3.96999,2518.9,2518.5,4.09482783]
[1730492760689,3.96999,2518.9,2518.5,3.9706]
[1730492760849,3.96999,2518.9,2518.5,4.09482772]
[1730492761777,0.03066043,2518.8,2518.5,0.1242276]
[1730492761979,3.96999,2518.9,2518.5,4.64483887]
[1730492762187,3.96999,2518.9,2518.5,4.76906647]
[1730492762480,3.96999,2518.9,2518.5,4.64483887]
[1730492762685,6.2725678,2518.8,2518.3,0.41465369]
[1730492762850,3.97077,2518.4,2518.3,0.41465369]
[1730492763044,4.00143043,2518.4,2518.0,0.778]
[1730492763376,4.00143043,2518.4,2518.0,6.20393737]
[1730492763377,0.03066043,2518.4,2518.0,6.20393737]
[1730492763687,0.03066043,2518.4,2518.1,1.01753474]
[1730492764668,4.00143043,2518.4,2518.0,6.20392737]
[1730492766483,4.00143043,2518.4,2518.0,2.23253737]
[1730492768279,4.00143043,2518.4,2518.0,6.20391737]
[1730492768885,4.00143043,2518.4,2518.0,2.23253737]
[1730492772688,7.97229043,2518.4,2518.0,2.23253737]
[1730492772890,3.97077,2518.4,2518.0,3.25010511]
[1730492773091,4.00143043,2518.4,2518.0,3.25010511]
[1730492773982,4.00143043,2518.4,2518.0,7.22146511]
[1730492774184,0.03066043,2518.4,2518.0,7.22146511]
[1730492775777,4.81845043,2518.5,2518.1,3.97121]
[1730492775978,4.81845043,2518.5,2518.1,1.11926751]
[1730492777398,0.84776043,2518.5,2518.1,1.11926751]
[1730492777582,3.97077,2518.4,2518.1,1.11926751]
[1730492778724,0.84776043,2518.5,2518.1,5.09043751]
[1730492778725,0.8171,2518.5,2518.1,5.09043751]
[1730492779017,0.8256,2518.7,2518.2,5.42555737]
[1730492779181,4.79591,2518.7,2518.4,1.45453737]
[1730492779688,4.82657043,2518.7,2518.3,4.63325423]
[1730492780015,3.97046,2518.6,2518.3,0.66242423]
[1730492781523,0.85626043,2518.7,2518.3,4.63332423]
[1730492782595,4.82665043,2518.7,2518.3,0.66242423]
[1730492782793,4.82665043,2518.7,2518.4,0.60879816]
[1730492783492,4.7959,2518.7,2518.4,0.60879816]
[1730492784685,8.76628,2518.7,2518.4,0.60879816]
[1730492784887,0.03066043,2518.6,2518.1,1.1924255]
[1730492785081,0.03066043,2518.6,2518.1,0.778]
[1730492785322,3.97068,2518.5,2518.1,4.74921]
[1730492786812,3.97059,2518.6,2518.1,4.74921]
[1730492787027,4.00125043,2518.6,2518.1,4.74921]
[1730492787321,4.00125043,2518.6,2518.2,1.01749974]
[1730492788022,5.42439737,2519.0,2518.5,0.7671]
[1730492788023,3.97001,2518.9,2518.5,0.7671]
[1730492788222,3.96998,2518.9,2518.6,1.45453737]
[1730492788432,3.96998,2518.9,2518.5,0.7671]
[1730492788626,4.00064043,2518.9,2518.5,1.38633274]
[1730492789288,4.00064043,2518.9,2518.5,5.35688274]
[1730492789482,0.03066043,2518.9,2518.5,1.38633274]
[1730492789722,3.9702,2518.8,2518.3,4.72538]
[1730492790137,3.9702,2518.8,2518.4,5.42520737]
[1730492792027,4.77104,2519.0,2518.5,3.97047]
[1730492792028,4.77096,2519.0,2518.5,3.97047]
[1730492792199,4.75977043,2519.2,2518.7,0.778]
[1730492792404,4.75977043,2519.2,2518.7,4.74822]
[1730492792405,3.96973,2519.1,2518.7,4.74822]
[1730492794131,4.00039043,2519.1,2518.7,4.74822]
[1730492794901,0.03066043,2519.1,2518.7,5.81978781]
[1730492795532,8.69882,2519.2,2518.7,5.81978781]
[1730492795828,0.7596,2519.2,2518.7,1.92896645]
[1730492796031,3.96944,2519.3,2518.9,3.96997]
[1730492796249,4.7658,2519.6,2519.2,5.42395737]
[1730492796397,4.7658,2519.6,2519.1,4.74763]
[1730492796398,3.96911,2519.5,2519.1,4.74763]
[1730492796604,0.03066043,2519.4,2519.1,4.74763]
[1730492796908,0.03066043,2519.4,2519.1,5.36784674]
[1730492797438,0.03066043,2519.4,2519.1,5.36780674]
[1730492797730,4.79647043,2519.6,2519.1,9.33734674]
[1730492797908,4.79647043,2519.6,2519.1,9.33730674]
[1730492798114,4.79647043,2519.6,2519.2,3.96942]
[1730492798743,0.82756043,2519.6,2519.2,3.96935]
[1730492799057,0.7969,2519.6,2519.3,3.96928]
[1730492799355,0.82756043,2519.6,2519.2,3.96943]
[1730492799504,4.7658,2519.6,2519.2,3.96943]
[1730492800105,0.7969,2519.6,2519.2,3.96943]
[1730492800342,0.7969,2519.6,2519.3,0.93372767]
[1730492800550,4.76578,2519.6,2519.3,0.93372767]
[1730492801707,0.7969,2519.6,2519.3,0.93372767]
[1730492802225,0.7969,2519.6,2519.3,4.90305767]
[1730492805198,0.7969,2519.6,2519.3,0.93372767]
[1730492806703,3.99939043,2519.7,2519.3,0.93372767]
[1730492807333,3.99939043,2519.7,2519.3,4.90306767]
[1730492810247,3.96904,2519.5,2519.1,4.74761]
[1730492810411,3.99970043,2519.5,2519.1,4.74761]
[1730492811475,3.96904,2519.5,2519.1,4.74761]
[1730492811650,0.7919,2519.4,2519.0,3.96975]
[1730492811943,3.96953,2519.2,2518.8,4.73045]
[1730492812941,0.7745,2519.1,2518.7,3.97027]
[1730492814309,0.7745,2519.1,2518.8,3.97013]
[1730492817294,4.74417,2519.1,2518.7,3.97027]
[1730492817573,4.74417,2519.1,2518.7,3.97021]
[1730492818363,4.74417,2519.1,2518.7,4.09442747]
[1730492818526,4.74417,2519.1,2518.7,7.94042]
[1730492818926,4.74417,2519.1,2518.7,3.97021]
[1730492819165,4.74417,2519.1,2518.7,4.09442491]
[1730492819372,4.74417,2519.1,2518.7,7.94043]
[1730492821676,4.74417,2519.1,2518.7,3.97021]
[1730492821837,1.25198304,2519.1,2518.7,8.06464405]
[1730492822034,0.7745,2519.1,2518.7,7.94043]
[1730492822233,0.7745,2519.1,2518.8,4.09429221]
[1730492823432,0.7745,2519.1,2518.8,0.12421221]
[1730492823632,0.7745,2519.1,2518.7,8.06464221]
[1730492823969,0.7745,2519.1,2518.8,0.12421221]
[1730492825070,4.74417,2519.1,2518.8,0.12421221]
[1730492825294,0.7745,2519.1,2518.8,0.12421221]
[1730492826334,4.74417,2519.1,2518.8,0.12421221]
[1730492826572,1.25198304,2519.1,2518.8,0.12421221]
[1730492826973,4.00021043,2519.2,2518.8,4.09425221]
[1730492827159,4.00021043,2519.2,2518.8,4.87225221]
[1730492827694,4.72905,2519.3,2518.9,4.09419221]
[1730492827885,4.72905,2519.3,2518.9,3.96998]
[1730492828048,8.69852,2519.3,2518.9,4.09419116]
[1730492828249,8.69852,2519.3,2518.9,4.2184033]
[1730492828587,3.96953,2519.2,2518.9,0.12421214]
[1730492828954,3.96953,2519.2,2518.8,6.20263737]
[1730492829764,3.96953,2519.2,2518.9,0.12421367]
[1730492830277,3.96953,2519.2,2518.8,6.20263737]
[1730492830478,3.96953,2519.2,2518.9,0.12421387]
[1730492830682,3.96953,2519.2,2518.8,6.20263737]
[1730492830848,4.00019043,2519.2,2518.9,0.12421488]
[1730492831053,3.96953,2519.2,2518.9,0.12421496]
[1730492831386,4.00019043,2519.2,2518.8,6.20263737]
[1730492831605,4.00019043,2519.2,2518.9,0.12421489]
[1730492831746,4.00019043,2519.2,2518.8,6.20263737]
[1730492831947,4.00019043,2519.2,2518.9,0.12421497]
[1730492832147,4.00019043,2519.2,2518.8,6.40138121]
[1730492832452,4.00019043,2519.2,2518.9,0.12421488]
[1730492832675,4.00019043,2519.2,2519.0,0.12421495]
[1730492832975,4.00019043,2519.2,2518.8,6.40138121]
[1730492833181,4.00019043,2519.2,2518.9,0.12421461]
[1730492833349,4.00019043,2519.2,2519.0,0.12421461]
[1730492833555,4.72899,2519.3,2518.9,3.96998]
[1730492833751,4.72899,2519.3,2519.0,0.12421488]
[1730492834086,3.96912,2519.5,2519.1,0.12421488]
[1730492834385,3.96912,2519.5,2519.0,5.42424737]
[1730492834386,3.99988043,2519.4,2519.0,5.42424737]
[1730492834584,3.99988043,2519.4,2519.1,0.12420734]
[1730492834781,3.99988043,2519.4,2519.0,5.42424737]
[1730492835083,3.99988043,2519.4,2519.1,0.12420753]
[1730492835290,4.76288043,2519.4,2519.0,3.96971]
[1730492835580,4.76288043,2519.4,2519.1,0.12420912]
[1730492835789,4.76288043,2519.4,2519.0,3.96971]
[1730492835949,4.76288043,2519.4,2519.1,0.12420726]
[1730492836153,0.7969,2519.6,2519.1,1.58437873]
[1730492836347,0.7969,2519.6,2519.2,1.77747345]
[1730492836586,0.7969,2519.6,2519.3,0.12420483]
[1730492836587,3.99974043,2519.5,2519.3,0.12420483]
[1730492836752,3.99974043,2519.5,2519.4,0.12420483]
[1730492837988,3.96908,2519.5,2519.4,0.12420483]
[1730492838757,4.79646043,2519.6,2519.4,0.12420483]
[1730492839170,4.79646043,2519.6,2519.2,3.9695]
[1730492839389,4.79646043,2519.6,2519.3,0.12419628]
[1730492839689,4.79646043,2519.6,2519.4,0.12419628]
[1730492839880,4.79646043,2519.6,2519.2,3.9695]
[1730492840079,4.79646043,2519.6,2519.3,0.32289527]
[1730492840257,4.79646043,2519.6,2519.4,0.12419049]
[1730492840586,4.79646043,2519.6,2519.2,3.9695]
[1730492840884,0.82756043,2519.6,2519.3,4.29226311]
[1730492841065,0.82756043,2519.6,2519.4,0.1241969]
[1730492841268,0.82756043,2519.6,2519.3,0.19871125]
[1730492841459,0.82756043,2519.6,2519.4,0.12419448]
[1730492841658,0.82756043,2519.6,2519.3,0.19871125]
[1730492841890,4.79651043,2519.6,2519.4,0.12419427]
[1730492842077,4.79651043,2519.6,2519.2,3.9695]
[1730492842275,3.96905,2519.5,2519.3,0.12419685]
[1730492842491,3.96905,2519.5,2519.4,0.12419685]
[1730492842858,3.96905,2519.5,2519.4,0.12419776]
[1730492843494,3.96905,2519.5,2519.4,0.12419888]
[1730492844168,4.79647043,2519.6,2519.4,0.12419888]
[1730492844377,4.79647043,2519.6,2519.5,0.12418951]
[1730492844769,4.79647043,2519.6,2519.3,0.19870824]
[1730492845062,4.79647043,2519.6,2519.4,0.1241929]
[1730492845366,3.96904,2519.5,2519.3,0.19871373]
[1730492845579,3.96904,2519.5,2519.4,0.12419614]
[1730492847585,4.79647043,2519.6,2519.4,0.12419614]
[1730492847761,4.79647043,2519.6,2519.2,0.778]
[1730492848093,4.79647043,2519.6,2519.3,0.12419615]
[1730492848281,4.79647043,2519.6,2519.4,0.12419615]
[1730492848604,4.79647043,2519.6,2519.2,1.85967627]
[1730492848778,4.79647043,2519.6,2519.3,0.12419774]
[1730492849005,4.79647043,2519.6,2519.4,0.12419774]
[1730492849175,4.79647043,2519.6,2519.2,1.85967627]
[1730492849493,4.79647043,2519.6,2519.3,0.12419765]
[1730492849797,3.96912,2519.5,2519.4,0.12419765]
[1730492850377,3.96912,2519.5,2519.2,0.778]
[1730492850574,3.96912,2519.5,2519.4,0.12419806]
[1730492854569,3.96904,2519.5,2519.4,0.12419776]
[1730492855185,3.96904,2519.5,2519.2,1.46273927]
[1730492856102,3.96904,2519.5,2519.2,0.778]
[1730492856400,3.96904,2519.5,2519.3,0.1241994]
[1730492856899,3.96904,2519.5,2519.4,0.1241994]
[1730492860185,8.73482,2519.6,2519.4,0.1241994]
[1730492860393,4.76581,2519.6,2519.2,1.65325546]
[1730492860592,0.82756043,2519.6,2519.3,0.68648398]
[1730492860798,4.76581,2519.6,2519.4,0.12419443]
[1730492860994,3.96891,2519.6,2519.2,0.778]
[1730492861201,3.96911,2519.5,2519.3,0.32289836]
[1730492861528,3.96891,2519.6,2519.4,0.12419422]
[1730492861726,3.96891,2519.6,2519.2,0.778]
[1730492861882,3.96891,2519.6,2519.3,0.12419674]
[1730492861883,3.96904,2519.5,2519.3,0.12419674]
[1730492862083,3.96904,2519.5,2519.4,0.12419674]
[1730492862735,3.96891,2519.6,2519.4,0.12419674]
[1730492862886,3.96891,2519.6,2519.5,0.12419674]
[1730492863200,3.96891,2519.6,2519.3,0.19871153]
[1730492863409,3.96907,2519.5,2519.4,0.12419666]
[1730492864309,3.96891,2519.6,2519.4,0.12418927]
[1730492864498,3.96891,2519.6,2519.5,0.12418927]
[1730492865091,3.99957043,2519.6,2519.5,0.12418927]
[1730492865496,3.99957043,2519.6,2519.5,0.12419725]
[1730492865831,3.99957043,2519.6,2519.5,0.12419735]
[1730492866034,3.96891,2519.6,2519.5,0.12419735]
[1730492866331,3.99957043,2519.6,2519.5,0.12419735]
[1730492866535,3.99957043,2519.6,2519.2,0.778]
[1730492866536,3.96913,2519.5,2519.3,0.1987167]
[1730492866727,3.96913,2519.5,2519.4,0.1241974]
[1730492868200,3.99960043,2519.6,2519.4,0.1241974]
[1730492868397,3.96894,2519.6,2519.5,0.1241974]
[1730492873138,4.77554,2519.6,2519.5,0.1241974]
[1730492873303,3.96911,2519.5,2519.1,4.21797613]
[1730492873636,3.96927,2519.4,2519.2,0.32291245]
[1730492873934,3.99993043,2519.4,2519.3,0.12419711]
[1730492875433,3.96927,2519.4,2519.3,0.12419711]
[1730492875647,3.99993043,2519.4,2519.3,0.12419711]
[1730492876153,3.96927,2519.4,2519.3,0.12419711]
[1730492876451,3.96895,2519.6,2519.4,0.7531]
[1730492876749,3.96895,2519.6,2519.5,0.12419711]
[1730492877543,3.96895,2519.6,2519.5,0.12419459]
[1730492877855,4.75063,2519.9,2519.5,4.09322459]
[1730492878014,3.96853,2519.9,2519.6,0.32289261]
[1730492878214,3.96853,2519.9,2519.7,0.12419459]
[1730492878444,3.96853,2519.9,2519.5,4.73479979]
[1730492878445,3.96841,2519.9,2519.8,0.12419459]
[1730492878754,3.99907043,2519.9,2519.8,0.12419459]
[1730492880638,3.96866,2519.8,2519.4,6.17680737]
[1730492880838,3.96866,2519.8,2519.4,3.22225211]
[1730492881038,3.96866,2519.8,2519.6,0.19869369]
[1730492881348,3.96866,2519.8,2519.7,0.12418732]
[1730492883544,3.96866,2519.8,2519.4,0.7531]
[1730492883750,3.96866,2519.8,2519.7,0.12418478]
[1730492884265,3.99932043,2519.8,2519.7,0.12418478]
[1730492885335,3.96841,2519.9,2519.7,0.12418478]
[1730492885544,3.96841,2519.9,2519.8,0.12418478]
[1730492887669,3.96841,2519.9,2519.8,0.12417998]
[1730492888847,3.96841,2519.9,2519.5,0.19869046]
[1730492889052,3.96841,2519.9,2519.6,0.3228723]
[1730492889252,3.96841,2519.9,2519.7,0.12418184]
[1730492889455,3.96841,2519.9,2519.8,0.12418184]
[1730492889642,3.96841,2519.9,2519.8,0.12418064]
[1730492889842,3.96841,2519.9,2519.4,6.17671737]
[1730492890155,3.96841,2519.9,2519.5,0.96538035]
[1730492890383,3.96841,2519.9,2519.6,0.32287089]
[1730492890550,3.96841,2519.9,2519.7,0.12418178]
[1730492890743,3.96841,2519.9,2519.5,0.64250773]
[1730492890939,4.65455303,2520.0,2519.5,0.64250773]
[1730492891183,3.96856,2519.8,2519.6,0.124182]
[1730492891382,3.96856,2519.8,2519.7,0.124182]
[1730492894678,3.96856,2519.8,2519.7,0.12418069]
[1730492895856,0.68629303,2520.0,2519.7,0.12418069]
[1730492896058,3.96825,2520.0,2519.8,0.90218069]
[1730492896269,3.96825,2520.0,2519.9,0.12418069]
[1730492898590,3.96825,2520.0,2519.8,0.778]
[1730492898793,3.96825,2520.0,2519.9,0.12417095]
[1730492899454,3.96825,2520.0,2519.6,6.20135737]
[1730492899650,3.96841,2519.9,2519.7,0.32284159]
[1730492899876,3.96841,2519.9,2519.8,0.12416947]
[1730492900658,3.96879,2519.7,2519.3,3.96933]
[1730492900863,3.96879,2519.7,2519.4,0.32287183]
[1730492901044,3.96879,2519.7,2519.3,3.96933]
[1730492901045,3.96879,2519.7,2519.5,0.12418147]
[1730492901250,3.96879,2519.7,2519.2,2.23253737]
[1730492901251,3.96872,2519.7,2519.2,6.20193737]
[1730492901555,3.96872,2519.7,2519.3,4.29218096]
[1730492901776,3.96872,2519.7,2519.4,0.32289096]
[1730492902084,7.93753,2519.7,2519.4,0.19869808]
[1730492902243,3.96872,2519.7,2519.5,0.1241863]
[1730492902443,3.96872,2519.7,2519.3,0.1987031]
[1730492902646,3.96872,2519.7,2519.4,0.12418947]
[1730492902880,3.99929043,2519.8,2519.5,0.12418947]
[1730492903091,3.99929043,2519.8,2519.6,0.12418947]
[1730492903382,3.99929043,2519.8,2519.4,5.42368737]
[1730492903582,3.99929043,2519.8,2519.5,0.12418328]
[1730492903789,3.99929043,2519.8,2519.6,0.12418328]
[1730492904089,3.99929043,2519.8,2519.4,5.42368737]
[1730492904387,3.99929043,2519.8,2519.5,0.12418379]
[1730492904688,3.99929043,2519.8,2519.3,3.96935]
[1730492904689,3.96882,2519.7,2519.2,6.20201737]
[1730492904892,3.96882,2519.7,2519.3,0.32289717]
[1730492905087,0.8197,2519.6,2519.4,0.12419122]
[1730492905398,0.8197,2519.6,2519.5,0.12419122]
[1730492905696,0.8197,2519.6,2519.5,0.12418875]
[1730492906397,4.78858,2519.6,2519.5,0.12418875]
[1730492907293,0.8197,2519.6,2519.5,0.12418875]
[1730492909394,3.96874,2519.7,2519.3,3.96934]
[1730492909565,3.96874,2519.7,2519.5,0.12418734]
[1730492909876,3.96874,2519.7,2519.3,5.02787828]
[1730492910075,3.96874,2519.7,2519.4,0.32288485]
[1730492910302,3.96874,2519.7,2519.5,0.12418646]
[1730492910463,3.96874,2519.7,2519.4,0.19870022]
[1730492910663,3.96874,2519.7,2519.5,0.12418763]
[1730492910863,3.96874,2519.7,2519.4,0.19870018]
[1730492911064,3.96874,2519.7,2519.5,0.12418765]
[1730492911264,3.96874,2519.7,2519.4,0.19870025]
[1730492911491,3.96874,2519.7,2519.5,0.1241875]
[1730492911661,3.96874,2519.7,2519.4,0.19870003]
[1730492911879,3.96874,2519.7,2519.5,0.12418754]
[1730492912074,3.96874,2519.7,2519.6,0.12418754]
[1730492913208,3.957481,2519.7,2519.6,0.12418699]
[1730492913371,3.957481,2519.7,2519.6,0.12418705]
[1730492915303,3.957481,2519.7,2519.6,0.12418706]
[1730492915709,3.957481,2519.7,2519.3,3.96932]
[1730492915889,3.957481,2519.7,2519.4,0.12418879]
[1730492916092,3.957481,2519.7,2519.5,0.12418879]
[1730492916309,3.957481,2519.7,2519.3,5.02786128]
[1730492916509,3.957481,2519.7,2519.4,0.32289058]
[1730492916812,3.957481,2519.7,2519.5,0.12418868]
[1730492916980,3.957481,2519.7,2519.3,5.02786128]
[1730492917181,3.957481,2519.7,2519.4,0.19870167]
[1730492917508,3.957481,2519.7,2519.3,5.02786128]
[1730492917509,3.96882,2519.7,2519.5,0.12418906]
[1730492917672,3.96888,2519.6,2519.3,1.05854128]
[1730492918217,3.96888,2519.6,2519.4,0.12419065]
[1730492918373,3.96888,2519.6,2519.5,0.12419065]
[1730492918893,3.96804,2520.2,2519.7,3.96863]
[1730492919072,3.99870043,2520.2,2519.8,5.94413102]
[1730492919268,3.99870043,2520.2,2519.9,0.12419065]
[1730492919566,0.7621,2520.3,2520.0,0.12416746]
[1730492919567,4.76057043,2520.3,2520.0,0.12416746]
[1730492919764,4.76057043,2520.3,2519.9,0.778]
[1730492920102,4.76057043,2520.3,2520.0,0.12416527]
[1730492920304,4.76057043,2520.3,2519.9,4.74638]
[1730492920516,4.76057043,2520.3,2520.0,0.124166]
[1730492920812,4.76057043,2520.3,2519.9,5.80301104]
[1730492921313,4.76057043,2520.3,2520.0,0.12416656]
[1730492921506,4.76057043,2520.3,2519.9,5.80301104]